bitfinex-derivatives/quotes_BTCF0:USTF0_20241120
["timestamp","ask_amount","ask_price","bid_price","bid_amount"]
[1732074991000,0.054252,92048.0,92044.0,0.00569272]
[1732074991202,0.054252,92048.0,92039.0,0.10564905]
[1732074991203,0.054252,92048.0,92045.0,0.00569272]
[1732074991407,0.054252,92048.0,92046.0,0.00569272]
[1732074991604,0.054252,92048.0,92047.0,0.00569272]
[1732074991908,0.054252,92048.0,92047.0,0.05994472]
[1732074994594,0.0051,92055.0,92053.0,0.054248]
[1732074994795,0.054245,92060.0,92056.0,0.054247]
[1732074995002,0.054245,92060.0,92056.0,0.05993469]
[1732074996094,0.054245,92060.0,92058.0,0.054245]
[1732074997905,0.36136001,92065.0,92063.0,0.054242]
[1732074998102,0.00056001,92065.0,92063.0,0.054242]
[1732074998510,0.01421884,92068.0,92063.0,0.054242]
[1732074998714,0.0051,92071.0,92063.0,0.054242]
[1732074999803,0.054242,92065.0,92063.0,0.054242]
[1732075003114,0.054242,92065.0,92063.0,0.0685633]
[1732075005322,0.054242,92065.0,92063.0,0.0143213]
[1732075005619,0.054242,92065.0,92060.0,0.054244]
[1732075007210,0.054242,92065.0,92061.0,0.054244]
[1732075007407,0.054242,92065.0,92062.0,0.054243]
[1732075007612,0.054242,92065.0,92063.0,0.054243]
[1732075009829,0.01916062,92071.0,92059.0,0.37551972]
[1732075010022,0.054243,92063.0,92059.0,0.42888472]
[1732075010410,0.054243,92063.0,92060.0,0.054245]
[1732075011521,0.054244,92061.0,92060.0,0.054245]
[1732075011726,0.054244,92061.0,92059.0,0.50207972]
[1732075011913,0.054244,92061.0,92059.0,0.50127972]
[1732075012817,0.054244,92061.0,92059.0,0.55552472]
[1732075013516,0.01916062,92071.0,92059.0,0.50127972]
[1732075013730,0.054242,92064.0,92062.0,0.054243]
[1732075013915,0.01916062,92071.0,92059.0,0.50215972]
[1732075013916,0.054245,92060.0,92059.0,0.50215972]
[1732075014112,0.054245,92060.0,92059.0,0.37463972]
[1732075014313,0.054245,92060.0,92047.0,0.0051]
[1732075014314,0.054252,92049.0,92047.0,0.0051]
[1732075014516,0.059348,92055.0,92052.0,0.054249]
[1732075014720,0.0323,92059.0,92050.0,0.10564905]
[1732075014921,0.054248,92054.0,92050.0,0.10564905]
[1732075015414,0.054248,92054.0,92051.0,0.12664]
[1732075015925,0.054248,92054.0,92052.0,0.054249]
[1732075021515,0.0323,92059.0,92051.0,0.12664]
[1732075021730,0.415049,92052.0,92051.0,0.12664]
[1732075022437,0.054249,92052.0,92051.0,0.12664]
[1732075023023,0.415049,92052.0,92051.0,0.12664]
[1732075024234,0.054249,92052.0,92051.0,0.12664]
[1732075024431,0.415049,92052.0,92051.0,0.12664]
[1732075025127,0.054249,92052.0,92051.0,0.12664]
[1732075028338,0.054249,92052.0,92043.0,0.01381128]
[1732075028339,0.054254,92044.0,92043.0,0.01381128]
[1732075028522,0.054254,92044.0,92043.0,0.12664]
[1732075029126,0.10564905,92051.0,92041.0,0.00088]
[1732075029337,0.054255,92043.0,92041.0,0.12664]
[1732075029551,0.054255,92043.0,92032.0,0.054261]
[1732075029552,0.054257,92039.0,92032.0,0.054261]
[1732075029733,0.054257,92039.0,92038.0,0.12664]
[1732075031035,0.054254,92045.0,92039.0,0.054257]
[1732075031237,0.00574,92053.0,92043.0,0.10564905]
[1732075031444,0.3608,92058.0,92043.0,0.10564905]
[1732075031638,0.054251,92050.0,92043.0,0.15990405]
[1732075031841,0.054251,92050.0,92043.0,0.10564905]
[1732075032141,0.3608,92058.0,92049.0,0.05425]
[1732075032545,0.3608,92058.0,92046.0,0.12664]
[1732075032734,0.054249,92053.0,92050.0,0.05425]
[1732075033240,0.054249,92053.0,92051.0,0.054249]
[1732075033630,0.3608,92058.0,92056.0,0.054246]
[1732075034243,0.054243,92063.0,92060.0,0.054244]
[1732075034429,0.054243,92063.0,92061.0,0.054243]
[1732075039534,0.054243,92063.0,92061.0,0.0680786]
[1732075040747,0.054239,92069.0,92064.0,0.054242]
[1732075041051,0.0325,92071.0,92064.0,0.054242]
[1732075041352,0.054241,92066.0,92064.0,0.054242]
[1732075043944,0.04655303,92071.0,92057.0,0.37571623]
[1732075043945,0.054245,92058.0,92057.0,0.37571623]
[1732075044153,0.04655303,92071.0,92057.0,0.37483623]
[1732075044349,0.054242,92063.0,92060.0,0.054244]
[1732075044541,0.04655303,92071.0,92060.0,0.054244]
[1732075044542,0.054243,92062.0,92060.0,0.054244]
[1732075046768,0.054248,92063.0,92059.0,0.054249]
[1732075047048,0.054249,92060.0,92059.0,0.054249]
[1732075047255,0.3608,92063.0,92055.0,0.14054703]
[1732075047555,0.3608,92063.0,92060.0,0.054249]
[1732075048445,0.3608,92062.0,92060.0,0.054249]
[1732075049641,0.054248,92063.0,92062.0,0.054248]
[1732075050051,0.04655303,92071.0,92062.0,0.054248]
[1732075051048,0.04655303,92071.0,92063.0,0.054248]
[1732075051741,0.04655303,92071.0,92064.0,0.054247]
[1732075051963,0.04655303,92071.0,92055.0,0.14054703]
[1732075052460,0.054245,92068.0,92060.0,0.054249]
[1732075053241,0.054245,92068.0,92061.0,0.054248]
[1732075053442,0.3608,92064.0,92062.0,0.054248]
[1732075054151,0.04655303,92071.0,92066.0,0.054246]
[1732075054865,0.04655303,92071.0,92067.0,0.054245]
[1732075055358,0.46704906,92072.0,92055.0,0.12648]
[1732075055556,0.3608,92072.0,92071.0,0.054243]
[1732075058253,0.3608,92072.0,92056.0,0.054252]
[1732075058254,0.054243,92071.0,92062.0,0.054248]
[1732075058556,0.46644905,92072.0,92062.0,0.054248]
[1732075058557,0.3608,92064.0,92062.0,0.054248]
[1732075059956,0.3608,92064.0,92057.0,0.054251]
[1732075059957,0.054249,92062.0,92057.0,0.054251]
[1732075060160,0.054249,92062.0,92058.0,0.05425]
[1732075060456,0.054249,92062.0,92060.0,0.054249]
[1732075063361,0.054249,92062.0,92061.0,0.00566694]
[1732075064457,0.054249,92061.0,92056.0,0.054252]
[1732075064643,0.054249,92061.0,92057.0,0.05994201]
[1732075064849,0.054249,92061.0,92058.0,0.05994201]
[1732075065047,0.054249,92061.0,92059.0,0.00569101]
[1732075065348,0.054249,92061.0,92060.0,0.05994001]
[1732075065550,0.52133205,92072.0,92060.0,0.00569101]
[1732075065759,0.14666897,92071.0,92060.0,0.00569101]
[1732075066062,0.36136001,92072.0,92071.0,0.054243]
[1732075066367,0.36136001,92072.0,92071.0,0.05993401]
[1732075066368,0.3608,92072.0,92071.0,0.05993401]
[1732075067558,0.50759543,92072.0,92054.0,0.0051]
[1732075067761,0.054244,92070.0,92066.0,0.054246]
[1732075068060,0.054244,92070.0,92053.0,0.0317]
[1732075068268,0.3608,92072.0,92067.0,0.00574113]
[1732075068756,0.14716058,92071.0,92068.0,0.00573765]
[1732075068947,0.3608,92072.0,92070.0,0.054244]
[1732075069149,0.14716175,92071.0,92070.0,0.054244]
[1732075069356,0.14716175,92071.0,92070.0,0.05998176]
[1732075070366,0.14706065,92071.0,92063.0,0.054248]
[1732075070567,0.3608,92072.0,92058.0,0.054251]
[1732075070568,0.415047,92064.0,92058.0,0.054251]
[1732075070954,0.415047,92064.0,92060.0,0.054249]
[1732075071373,0.054249,92060.0,92055.0,0.12628]
[1732075071673,0.3608,92056.0,92055.0,0.054252]
[1732075071867,0.415052,92056.0,92052.0,0.00162937]
[1732075072068,0.054253,92055.0,92052.0,0.01579254]
[1732075072267,0.054253,92055.0,92052.0,0.00162937]
[1732075072473,0.3608,92056.0,92052.0,0.00162937]
[1732075072671,0.3608,92056.0,92055.0,0.054252]
[1732075075669,0.3608,92056.0,92055.0,0.07121301]
[1732075076167,0.3608,92056.0,92055.0,0.054252]
[1732075076377,0.3608,92056.0,92055.0,0.0712129]
[1732075077767,0.32687825,92056.0,92055.0,0.08880881]
[1732075077970,0.32687825,92056.0,92055.0,0.0712129]
[1732075078554,0.32687825,92056.0,92055.0,0.054252]
[1732075079772,0.3608,92064.0,92055.0,0.054252]
[1732075079966,0.3608,92064.0,92063.0,0.054248]
[1732075082372,0.3608,92073.0,92063.0,0.00574739]
[1732075082571,0.3608,92073.0,92072.0,0.054242]
[1732075082777,0.3608,92073.0,92072.0,0.05998939]
[1732075085376,0.3608,92073.0,92072.0,0.12683339]
[1732075086478,0.3608,92073.0,92072.0,0.1268382]
[1732075087073,0.3608,92073.0,92072.0,0.14118624]
[1732075088478,0.3608,92073.0,92072.0,0.0599942]
[1732075088670,0.3608,92073.0,92072.0,0.0057522]
[1732075089683,0.3608,92073.0,92069.0,0.054244]
[1732075089980,0.066844,92071.0,92070.0,0.00573557]
[1732075091784,0.133688,92071.0,92062.0,0.054248]
[1732075091964,0.054249,92062.0,92057.0,0.054251]
[1732075092170,0.054249,92062.0,92058.0,0.00573748]
[1732075092378,0.054249,92062.0,92059.0,0.05998748]
[1732075092582,0.00056001,92063.0,92062.0,0.054248]
[1732075092779,0.3608,92065.0,92064.0,0.054247]
[1732075093095,0.3608,92065.0,92064.0,0.121091]
[1732075093386,0.3608,92065.0,92064.0,0.12682848]
[1732075095590,0.3608,92073.0,92069.0,0.054244]
[1732075095786,0.3608,92073.0,92070.0,0.05996427]
[1732075095991,0.3608,92073.0,92071.0,0.05996427]
[1732075096484,0.3608,92073.0,92072.0,0.00572193]
[1732075097282,0.0301,92077.0,92072.0,0.00572193]
[1732075097489,0.0301,92077.0,92073.0,0.00572193]
[1732075097687,0.0301,92077.0,92074.0,0.05996293]
[1732075097891,0.0301,92077.0,92075.0,0.00572193]
[1732075098089,0.0301,92077.0,92076.0,0.00572193]
[1732075099189,0.0301,92077.0,92076.0,0.00574289]
[1732075102893,0.0301,92077.0,92076.0,0.00576724]
[1732075102894,0.08434,92077.0,92076.0,0.00576724]
[1732075103787,0.08434,92077.0,92076.0,0.00576432]
[1732075104382,0.054243,92072.0,92065.0,0.054246]
[1732075104697,0.066844,92069.0,92066.0,0.06002313]
[1732075104996,0.066844,92069.0,92067.0,0.00577713]
[1732075105190,0.066844,92069.0,92068.0,0.00577713]
[1732075105778,0.066844,92069.0,92068.0,0.00578337]
[1732075106977,0.054244,92070.0,92068.0,0.00578337]
[1732075107181,0.066844,92069.0,92067.0,0.054245]
[1732075107377,0.066844,92069.0,92068.0,0.00579329]
[1732075108378,0.066844,92069.0,92068.0,0.02275239]
[1732075108583,0.066844,92069.0,92068.0,0.02275231]
[1732075109207,0.066844,92069.0,92068.0,0.02275014]
[1732075109787,0.066844,92069.0,92068.0,0.00579117]
[1732075115789,0.3608,92073.0,92068.0,0.00579117]
[1732075115990,0.3608,92073.0,92065.0,0.066844]
[1732075115991,0.3608,92073.0,92069.0,0.0312]
[1732075116198,0.3608,92073.0,92070.0,0.0302]
[1732075116409,0.3608,92073.0,92071.0,0.00579406]
[1732075116702,0.3608,92073.0,92072.0,0.00579406]
[1732075116890,0.50696636,92073.0,92072.0,0.06003606]
[1732075117087,0.50696637,92073.0,92072.0,0.06003606]
[1732075119007,0.50696637,92073.0,92072.0,0.054242]
[1732075119300,0.50696637,92073.0,92072.0,0.06002334]
[1732075120508,0.3608,92073.0,92072.0,0.06002334]
[1732075121093,0.066844,92074.0,92072.0,0.00578134]
[1732075121303,0.59149391,92084.0,92073.0,0.06002334]
[1732075121622,0.14621874,92083.0,92082.0,0.054237]
[1732075121800,0.14621874,92083.0,92082.0,0.00578134]
[1732075122001,0.3608,92084.0,92083.0,0.054236]
[1732075122199,0.50720955,92084.0,92083.0,0.06001734]
[1732075122412,0.3608,92084.0,92083.0,0.06001734]
[1732075123320,0.3608,92084.0,92083.0,0.12686134]
[1732075124216,0.42824401,92092.0,92091.0,0.054231]
[1732075124217,0.00060001,92092.0,92091.0,0.054231]
[1732075124426,0.3608,92093.0,92091.0,0.06001234]
[1732075124616,0.3608,92093.0,92092.0,0.00578134]
[1732075124816,0.3608,92093.0,92092.0,0.07208134]
[1732075126026,0.3608,92093.0,92092.0,0.07198585]
[1732075127325,0.3608,92093.0,92092.0,0.0663]
[1732075127622,0.3608,92093.0,92092.0,0.07198937]
[1732075134435,0.054228,92096.0,92092.0,0.07198937]
[1732075134621,0.054228,92096.0,92094.0,0.054229]
[1732075134932,0.054228,92096.0,92095.0,0.00568937]
[1732075135324,0.054228,92096.0,92094.0,0.054229]
[1732075135525,0.054228,92096.0,92095.0,0.00570092]
[1732075138029,0.054228,92096.0,92095.0,0.05992992]
[1732075138729,0.054228,92096.0,92095.0,0.05991666]
[1732075139732,0.054228,92096.0,92095.0,0.05990527]
[1732075140038,0.00056001,92101.0,92095.0,0.36647627]
[1732075140237,0.0051,92117.0,92111.0,0.054219]
[1732075140432,0.066844,92116.0,92096.0,0.40083627]
[1732075140637,0.066844,92116.0,92111.0,0.054219]
[1732075140944,0.066844,92116.0,92112.0,0.12552]
[1732075140945,0.054217,92115.0,92112.0,0.12552]
[1732075141128,0.3608,92114.0,92112.0,0.12552]
[1732075141535,0.066844,92116.0,92114.0,0.054218]
[1732075142042,0.3608,92115.0,92114.0,0.054218]
[1732075142239,0.066844,92116.0,92114.0,0.054218]
[1732075142430,0.427644,92116.0,92114.0,0.054218]
[1732075142629,0.066844,92116.0,92114.0,0.054218]
[1732075143640,0.066844,92115.0,92114.0,0.054218]
[1732075145332,0.066844,92115.0,92096.0,0.0355]
[1732075145528,0.066844,92097.0,92096.0,0.054228]
[1732075146630,0.066844,92097.0,92096.0,0.0598841]
[1732075147240,0.066844,92097.0,92096.0,0.054228]
[1732075147431,0.066844,92097.0,92096.0,0.05988524]
[1732075149341,0.066844,92097.0,92096.0,0.00565724]
[1732075149649,0.054228,92096.0,92095.0,9.514e-05]
[1732075150142,0.066844,92097.0,92095.0,9.514e-05]
[1732075151743,0.066844,92097.0,92095.0,0.05432414]
[1732075151939,0.066844,92097.0,92095.0,9.514e-05]
[1732075152139,0.0304,92096.0,92095.0,9.514e-05]
[1732075153548,0.097244,92096.0,92095.0,9.514e-05]
[1732075154638,0.458044,92096.0,92095.0,9.514e-05]
[1732075154838,0.521644,92096.0,92095.0,9.514e-05]
[1732075155041,0.588488,92096.0,92095.0,9.514e-05]
[1732075155237,0.521644,92096.0,92095.0,9.514e-05]
[1732075155441,0.588488,92096.0,92095.0,9.514e-05]
[1732075157555,0.521644,92096.0,92095.0,9.514e-05]
[1732075158052,0.3912,92096.0,92095.0,9.514e-05]
[1732075158264,0.458044,92096.0,92095.0,9.514e-05]
[1732075161750,0.427644,92096.0,92095.0,9.514e-05]
[1732075165759,0.788444,92096.0,92095.0,9.514e-05]
[1732075166154,0.855288,92096.0,92095.0,9.514e-05]
[1732075166661,0.855288,92096.0,92095.0,1.149e-05]
[1732075166968,1.00247981,92096.0,92095.0,1.149e-05]
[1732075167358,1.00247981,92096.0,92080.0,0.036]
[1732075167654,0.121081,92081.0,92080.0,0.036]
[1732075168354,0.12117614,92081.0,92080.0,0.036]
[1732075171062,9.514e-05,92081.0,92080.0,0.036]
[1732075171559,0.3608,92082.0,92081.0,0.054237]
[1732075171560,0.31099514,92082.0,92081.0,0.054237]
[1732075180376,0.054233,92089.0,92085.0,0.054234]
[1732075180566,0.054233,92089.0,92080.0,0.04981878]
[1732075180567,0.054233,92089.0,92086.0,0.054234]
[1732075181360,0.01384398,92094.0,92086.0,0.054234]
[1732075181672,0.054233,92088.0,92086.0,0.054234]
[1732075181970,0.3608,92096.0,92080.0,0.04981878]
[1732075182163,0.3608,92096.0,92081.0,0.054237]
[1732075182462,0.054232,92090.0,92080.0,0.04981878]
[1732075182662,0.054232,92090.0,92085.0,0.054235]
[1732075182858,0.054232,92090.0,92080.0,0.04981878]
[1732075182859,0.054232,92090.0,92086.0,0.054234]
[1732075184270,0.054229,92095.0,92080.0,0.04981878]
[1732075184458,0.37459392,92096.0,92080.0,0.04981878]
[1732075184677,0.05423,92094.0,92080.0,0.04981878]
[1732075184964,0.37459392,92096.0,92092.0,0.05423]
[1732075186372,0.37459392,92096.0,92080.0,0.04981878]
[1732075186580,0.37459392,92096.0,92093.0,0.05423]
[1732075189061,0.37459392,92096.0,92080.0,0.04981878]
[1732075189062,0.054229,92095.0,92081.0,0.054237]
[1732075189360,0.054229,92095.0,92089.0,0.054232]
[1732075189670,0.054229,92095.0,92080.0,0.04981878]
[1732075189671,0.054229,92095.0,92090.0,0.054232]
[1732075190874,0.415029,92095.0,92090.0,0.054232]
[1732075191162,0.3608,92093.0,92091.0,0.054231]
[1732075192670,0.42762274,92093.0,92091.0,0.054231]
[1732075193060,0.48185274,92093.0,92086.0,0.054234]
[1732075193265,0.48185274,92093.0,92082.0,0.06682274]
[1732075193266,0.48185274,92093.0,92087.0,0.054233]
[1732075193463,0.48185274,92093.0,92082.0,0.06682274]
[1732075193765,0.48185274,92093.0,92089.0,0.054232]
[1732075198271,0.48185274,92093.0,92082.0,0.06682274]
[1732075198272,0.48185274,92093.0,92090.0,0.054232]
[1732075198473,0.42762274,92093.0,92092.0,0.054231]
[1732075199179,0.42762274,92093.0,92083.0,0.0328]
[1732075199180,0.09712274,92098.0,92083.0,0.65146462]
[1732075199476,0.06682274,92093.0,92091.0,0.054231]
[1732075200371,0.12105274,92093.0,92091.0,0.054231]
[1732075201978,0.0309,92092.0,92080.0,0.036]
[1732075202472,0.0309,92092.0,92082.0,0.054236]
[1732075202473,0.054234,92086.0,92082.0,0.054236]
[1732075203478,0.06682274,92083.0,92080.0,0.036]
[1732075203670,0.054237,92082.0,92080.0,0.036]
[1732075203877,0.084437,92082.0,92080.0,0.036]
[1732075204082,0.0328,92081.0,92080.0,0.036]
[1732075204782,0.09962274,92081.0,92080.0,0.036]
[1732075205090,0.3608,92085.0,92080.0,0.090237]
[1732075205376,0.37498238,92085.0,92080.0,0.090237]
[1732075206274,0.054236,92084.0,92080.0,0.036]
[1732075208276,0.054236,92083.0,92080.0,0.036]
[1732075208472,0.054237,92082.0,92080.0,0.036]
[1732075209583,0.12105974,92082.0,92080.0,0.036]
[1732075212766,0.054237,92082.0,92080.0,0.036]
[1732075212970,0.06682274,92081.0,92080.0,0.036]
[1732075213778,0.06682274,92081.0,92080.0,0.04164399]
[1732075214982,0.06682274,92081.0,92080.0,0.04164955]
[1732075215771,0.06682274,92081.0,92080.0,0.036]
[1732075216781,0.13364548,92081.0,92080.0,0.036]
[1732075216973,0.28321459,92081.0,92080.0,0.00373181]
[1732075217282,0.06682274,92081.0,92080.0,0.00373181]
[1732075218078,0.13364548,92081.0,92080.0,0.00373181]
[1732075218281,0.21636101,92081.0,92080.0,0.00373181]
[1732075218479,0.28280176,92081.0,92080.0,0.00373181]
[1732075219482,0.13364548,92081.0,92080.0,0.00743181]
[1732075219693,0.054247,92065.0,92064.0,0.0051]
[1732075219888,0.12106974,92065.0,92059.0,0.0328]
[1732075220075,0.06682274,92060.0,92059.0,0.0328]
[1732075220781,0.06682274,92065.0,92059.0,0.0328]
[1732075221485,0.01413597,92068.0,92059.0,0.0328]
[1732075221692,0.0051,92073.0,92068.0,0.054245]
[1732075221983,0.06682274,92080.0,92067.0,0.06682274]
[1732075221984,0.3608,92076.0,92067.0,0.06682274]
[1732075222197,0.06682274,92075.0,92067.0,0.06682274]
[1732075222488,0.06682274,92075.0,92069.0,0.054244]
[1732075222990,0.13364548,92070.0,92060.0,0.15456]
[1732075223295,0.42762274,92063.0,92060.0,0.0302]
[1732075224081,0.06682274,92063.0,92060.0,0.0302]
[1732075224388,0.06682274,92063.0,92061.0,0.054249]
[1732075224788,0.054246,92067.0,92061.0,0.054249]
[1732075224988,0.415046,92067.0,92061.0,0.054249]
[1732075225293,0.054246,92067.0,92061.0,0.054249]
[1732075225894,0.3608,92065.0,92061.0,0.054249]
[1732075231231,0.3608,92065.0,92059.0,0.0328]
[1732075231383,0.10565347,92072.0,92059.0,0.0328]
[1732075231384,0.3608,92060.0,92059.0,0.0328]
[1732075232795,0.3608,92060.0,92052.0,0.0323]
[1732075233005,0.054253,92054.0,92052.0,0.0323]
[1732075234109,0.054253,92054.0,92051.0,0.00010772]
[1732075235781,0.42940587,92060.0,92051.0,0.00010772]
[1732075235992,0.054251,92058.0,92052.0,0.054254]
[1732075237088,0.054252,92056.0,92052.0,0.054254]
[1732075237389,0.054253,92054.0,92051.0,0.00010772]
[1732075239900,0.00056001,92060.0,92058.0,0.05425]
[1732075240404,0.3608,92067.0,92059.0,0.0327]
[1732075240699,0.3608,92067.0,92066.0,0.054246]
[1732075242591,0.10565347,92078.0,92061.0,0.0329]
[1732075242794,0.054244,92070.0,92068.0,0.054244]
[1732075242994,0.37491697,92077.0,92069.0,0.00565351]
[1732075242995,0.42915697,92077.0,92069.0,0.00565351]
[1732075243317,0.42915697,92077.0,92070.0,0.00565351]
[1732075243607,0.42915697,92077.0,92071.0,0.00565351]
[1732075243913,0.42915697,92077.0,92075.0,0.05424]
[1732075244213,0.42915697,92077.0,92076.0,0.00565351]
[1732075246705,0.08097065,92077.0,92076.0,0.00565351]
[1732075247007,0.06685368,92077.0,92076.0,0.00565351]
[1732075247702,0.3608,92079.0,92077.0,0.054239]
[1732075247903,0.05424,92077.0,92069.0,0.19085368]
[1732075248103,0.06685368,92079.0,92070.0,0.02346148]
[1732075248298,0.3608,92083.0,92071.0,0.00586278]
[1732075248299,0.12109568,92074.0,92071.0,0.00586278]
[1732075248498,0.12109568,92074.0,92072.0,0.00586278]
[1732075248700,0.12109568,92074.0,92073.0,0.00586278]
[1732075249294,0.18794936,92074.0,92073.0,0.00586278]
[1732075249511,0.18794936,92074.0,92061.0,0.0329]
[1732075249512,0.054246,92066.0,92061.0,0.0329]
[1732075249704,0.06685368,92062.0,92061.0,0.0329]
[1732075249902,0.06685368,92062.0,92061.0,0.03863508]
[1732075250408,0.06685368,92062.0,92061.0,0.00573508]
[1732075250622,0.10568107,92062.0,92061.0,0.00573508]
[1732075251705,0.11978861,92062.0,92061.0,0.00573508]
[1732075251904,0.0314,92065.0,92061.0,0.00573508]
[1732075252209,0.054248,92064.0,92062.0,0.00573508]
[1732075252401,0.054248,92064.0,92063.0,0.00573508]
[1732075253222,0.415048,92064.0,92063.0,0.00573508]
[1732075254022,0.415048,92064.0,92051.0,0.00010772]
[1732075254023,0.3608,92064.0,92051.0,0.00010772]
[1732075254314,0.054254,92053.0,92052.0,0.02273973]
[1732075254502,0.415054,92053.0,92052.0,0.02273985]
[1732075254725,0.415054,92053.0,92052.0,0.02274023]
[1732075254896,0.415054,92053.0,92052.0,0.00577889]
[1732075256716,0.415054,92053.0,92051.0,0.00010772]
[1732075256918,0.054259,92043.0,92037.0,0.0051]
[1732075257120,0.52074007,92043.0,92031.0,0.01399127]
[1732075257328,0.52074007,92043.0,92027.0,0.0362]
[1732075257704,0.52074007,92043.0,92027.0,0.0051]
[1732075260432,0.53473694,92043.0,92027.0,0.0051]
[1732075263513,0.054268,92028.0,92027.0,0.0051]
[1732075263722,0.52074907,92028.0,92027.0,0.00579489]
[1732075266117,0.52074907,92028.0,92027.0,0.00578151]
[1732075266827,0.53490706,92028.0,92027.0,0.00578151]
[1732075267215,0.53490706,92028.0,92014.0,0.0320905]
[1732075267216,0.054276,92015.0,92014.0,0.0320905]
[1732075267420,0.054276,92015.0,92014.0,0.03784997]
[1732075269026,0.054276,92015.0,92014.0,0.03783332]
[1732075270816,0.054276,92015.0,92014.0,0.00583332]
[1732075271420,0.054276,92015.0,92014.0,9.05e-05]
[1732075272217,0.054276,92015.0,92014.0,0.00575548]
[1732075273020,0.054276,92015.0,92014.0,0.00574392]
[1732075273430,0.054276,92015.0,92014.0,9.05e-05]
[1732075273632,0.054276,92015.0,92014.0,0.00574824]
[1732075275144,0.06848931,92015.0,92014.0,0.00574824]
[1732075275821,0.06859703,92015.0,92014.0,0.00574824]
[1732075276542,0.054284,92002.0,91999.0,0.40221]
[1732075276844,0.3608,92001.0,91999.0,0.39811]
[1732075277228,0.3608,92001.0,92000.0,0.1156594]
[1732075279152,0.37459585,92001.0,92000.0,0.1156594]
[1732075279444,0.3608,92001.0,92000.0,0.1156594]
[1732075279639,0.3608,92001.0,92000.0,0.11]
[1732075288835,0.3109,92001.0,92000.0,0.11]
[1732075289137,0.3109,92001.0,92000.0,0.12697131]
[1732075289442,0.054283,92004.0,92000.0,0.12697131]
[1732075289744,0.3608,92007.0,92000.0,0.12697131]
[1732075289745,0.054284,92002.0,92001.0,0.01697131]
[1732075289947,0.3608,92007.0,92001.0,0.01697166]
[1732075290139,0.3608,92007.0,92002.0,0.01697166]
[1732075290341,0.054282,92005.0,92003.0,0.01697166]
[1732075290536,0.054283,92003.0,92000.0,0.11]
[1732075290732,0.054283,92003.0,92001.0,0.01697152]
[1732075290939,0.054283,92003.0,92002.0,0.01697152]
[1732075292944,0.054284,92001.0,92000.0,0.11]
[1732075293149,0.054284,92001.0,92000.0,0.12697211]
[1732075293947,0.054284,92001.0,92000.0,0.11]
[1732075294148,0.054284,92001.0,92000.0,0.12697208]
[1732075294334,0.054284,92001.0,92000.0,0.11]
[1732075294536,0.054284,92001.0,92000.0,0.1269722]
[1732075295545,0.054284,92001.0,92000.0,0.11]
[1732075296148,0.39306001,92007.0,92000.0,0.11]
[1732075296444,0.054281,92007.0,92000.0,0.164285]
[1732075296850,0.054281,92007.0,92001.0,0.07125584]
[1732075297042,0.054281,92007.0,92002.0,0.01697184]
[1732075297242,0.054281,92007.0,92001.0,0.054284]
[1732075297243,0.054281,92007.0,92003.0,0.01697184]
[1732075297443,0.3608,92009.0,92007.0,0.054281]
[1732075297638,0.3608,92009.0,92008.0,0.01697028]
[1732075297835,0.00010772,92015.0,92008.0,0.01697028]
[1732075298059,0.00010772,92015.0,92013.0,0.054277]
[1732075298236,0.3608,92017.0,92014.0,0.02328499]
[1732075298237,0.34124487,92017.0,92014.0,0.02328499]
[1732075298444,0.34124487,92017.0,92015.0,0.01746631]
[1732075298640,0.34124487,92017.0,92016.0,0.02328499]
[1732075298842,0.32696787,92017.0,92016.0,0.07755999]
[1732075299339,0.32705522,92017.0,92016.0,0.07755999]
[1732075299554,0.32705522,92017.0,92016.0,0.09452945]
[1732075299738,0.32705522,92017.0,92016.0,0.04025445]
[1732075299946,0.32705522,92017.0,92016.0,0.02328499]
[1732075300360,0.32705522,92017.0,92016.0,0.01696999]
[1732075300663,0.32705522,92017.0,92016.0,0.00574451]
[1732075301540,0.32705522,92017.0,92016.0,0.02271406]
[1732075301850,0.32705522,92017.0,92016.0,0.03981918]
[1732075302350,0.32705522,92017.0,92016.0,0.07021918]
[1732075302946,0.32705522,92017.0,92016.0,0.10341918]
[1732075303550,0.32705522,92017.0,92016.0,0.10337426]
[1732075304055,0.32705522,92017.0,92016.0,0.08640497]
[1732075304253,0.32705522,92017.0,92016.0,0.08626873]
[1732075305046,8.735e-05,92017.0,92016.0,0.08626873]
[1732075305448,8.735e-05,92017.0,92016.0,0.06929959]
[1732075305643,8.735e-05,92017.0,92016.0,0.22706971]
[1732075305851,8.735e-05,92017.0,92016.0,0.25996971]
[1732075306852,8.735e-05,92017.0,92016.0,0.24300165]
[1732075307055,8.735e-05,92017.0,92016.0,0.25996943]
[1732075307963,8.735e-05,92017.0,92016.0,0.25996922]
[1732075308147,8.735e-05,92017.0,92016.0,0.24300165]
[1732075308356,0.33205248,92027.0,92017.0,0.054275]
[1732075308550,0.33205248,92027.0,92016.0,0.25996908]
[1732075308551,0.05427,92025.0,92024.0,0.05427]
[1732075309145,0.43263355,92027.0,92014.0,0.19229393]
[1732075309345,0.054275,92017.0,92015.0,0.0711603]
[1732075309552,0.054275,92017.0,92016.0,0.0168843]
[1732075310355,0.054275,92017.0,92015.0,0.054276]
[1732075310555,0.054273,92020.0,92011.0,0.12328]
[1732075310760,0.01384068,92021.0,92011.0,0.12328]
[1732075311059,0.054276,92015.0,92011.0,0.12328]
[1732075311260,0.054276,92015.0,92012.0,0.054278]
[1732075311651,0.054277,92014.0,92013.0,0.01665181]
[1732075312253,0.05428,92008.0,92006.0,0.24657493]
[1732075312449,0.05428,92008.0,92007.0,0.2089483]
[1732075312655,0.05428,92008.0,92007.0,0.01665437]
[1732075313169,0.13758107,92013.0,92002.0,0.55309393]
[1732075313463,0.054282,92006.0,92003.0,0.13975138]
[1732075313653,0.054282,92006.0,92004.0,0.01647138]
[1732075313851,0.0305,92012.0,92005.0,0.01647138]
[1732075314051,0.084778,92012.0,92009.0,0.054279]
[1732075314250,0.0305,92012.0,92003.0,0.12328]
[1732075314452,0.054279,92010.0,92005.0,0.054282]
[1732075314757,0.054279,92010.0,92006.0,0.01652608]
[1732075315069,0.054279,92010.0,92007.0,0.01652608]
[1732075315267,0.054279,92010.0,92008.0,0.01652608]
[1732075315458,0.0305,92012.0,92005.0,0.054282]
[1732075315762,0.054281,92007.0,92006.0,0.01658469]